Cogmind - Beta 10 @@@ ROGUE MODE // 2020.09.11 @ 21:13:58 Player: Nalzok Result: Destroyed by G-50 Soldier with Heavy Laser Performance ------------- Evolutions (5) 2500 Regions Visited (11) 2200 Robots Destroyed (129) 645 Value Destroyed (4727) 4727 Prototype IDs (31) 620 Alien Tech Used (0) 0 Bonus (1833) 1833 TOTAL SCORE: 12525 Bonus ------- High Alert Combat Kills 833 Entered Garrisons 200 Used RIF Installer 500 Aligned with FarCom 300 Cogmind --------- Core Integrity 0/1000 Matter 238/550 Energy 670/670 System Corruption 20% Temperature Cool (9) Movement Walking (240) Ox4 Location -5/Factory Parts ------- > --- POWER (1) -------- Micro Fission Core > --- PROPULSION (4) --- Flexi-carbon Leg > --- UTILITY (8) ------ Advanced Heat Sink High-capacity Storage Unit High-capacity Storage Unit Energy Well Matter Compressor Enhanced Optical Array Target Analyzer > --- WEAPON (4) ------- Scatter Rocket Array > --- INVENTORY (20) --- Improved Thermal Generator Improved Cooling System High-capacity Storage Unit Advanced Targeting Computer Relay Coupler [Swarmer] (42) Relay Coupler [Swarmer] (46) Relay Coupler [Duelist] (31) Gatling Laser Neutron Cannon Neutron Cannon Firepult Hypervelocity Coil Gun Enhanced Gauss Cannon Improved Proton Missile Launcher Scatter Rocket Array Scatter Rocket Array Remote Datajack Heavy Flail Peak State ------------ > --- POWER ------------ Micro Fission Core > --- PROPULSION ------- Carbon-fiber Leg Improved Titanium Leg Improved Titanium Leg Improved Titanium Leg > --- UTILITY ---------- Improved Thermal Generator Improved Heat Sink Improved Heat Sink High-capacity Storage Unit High-capacity Storage Unit Matter Compressor Target Analyzer Improved Core Analyzer > --- WEAPON ----------- Plasma Cannon Cooled Particle Cannon Cooled Plasma Cannon Neutron Cannon > --- INVENTORY -------- Light Nuclear Core Improved Titanium Leg Improved Titanium Leg Improved Thermal Generator Improved Cooling System High-capacity Storage Unit Enhanced Optical Array Relay Coupler [NC] Relay Coupler [Swarmer] Relay Coupler [Swarmer] Relay Coupler [Duelist] Firepult Hypervelocity Coil Gun Enhanced Gauss Cannon Scatter Rocket Array Scatter Rocket Array Scatter Rocket Array Remote Datajack Heavy Flail [Rating: 78] Favorites ----------- Power Improved Deuterium Engine Engine Improved Deuterium Engine Power Core Light Nuclear Core Propulsion Carbon-fiber Leg Leg Carbon-fiber Leg Utility High-capacity Storage Unit Device Improved Heat Sink Storage High-capacity Storage Unit Processor Target Analyzer Hackware Hacking Suite Protection Improved Medium Armor Plating Weapon Improved Medium Laser Energy Gun Improved Medium Laser Energy Cannon Cooled Particle Cannon Ballistic Gun Autogun Ballistic Cannon Enhanced Gauss Cannon Launcher Shock Bomb Launcher Special Weapon Remote Datajack Impact Weapon Heavy Flail Build | -11 -10 -9 -9 -9 -8 -8 -7 -7 -7 -7 -5 ------- Run | Scr Mat Mat Min Exi Min Mat Fac Sto Gar Rec Fac Slots Evolved 10 | . . 2 . . . 2 2 . . . 4 Power . | . . . . . . . . . . . . Propulsion 2 | . . . . . . . . . . . 2 Utility 6 | . . 2 . . . . 2 . . . 2 Weapon 2 | . . . . . . 2 . . . . . Parts Attached 155 | . 2 5 5 3 . 12 8 40 23 4 53 Power 15 | . . 2 . . . 1 1 3 2 . 6 Engine 10 | . . 2 . . . 1 1 3 1 . 2 Core 5 | . . . . . . . . . 1 . 4 Reactor . | . . . . . . . . . . . . Propulsion 26 | . . 2 . . . 2 . 7 3 1 11 Treads . | . . . . . . . . . . . . Leg 26 | . . 2 . . . 2 . 7 3 1 11 Wheel . | . . . . . . . . . . . . Hover . | . . . . . . . . . . . . Flight . | . . . . . . . . . . . . Utility 37 | . 1 1 1 2 . 2 5 7 7 . 11 Device 13 | . 1 . . . . . 1 . 6 . 5 Storage 5 | . . 1 . 2 . . . . . . 2 Processor 6 | . . . 1 . . . . 1 1 . 3 Hackware 2 | . . . . . . . 1 . . . 1 Protection 11 | . . . . . . 2 3 6 . . . Artifact . | . . . . . . . . . . . . Weapon 77 | . 1 . 4 1 . 7 2 23 11 3 25 Energy Gun 20 | . . . 1 1 . 3 1 8 5 1 . Energy Cannon 23 | . . . . . . 1 1 6 1 2 12 Ballistic Gun 11 | . 1 . . . . . . 3 4 . 3 Ballistic Cannon 3 | . . . . . . . . . . . 3 Launcher 16 | . . . 3 . . 3 . 6 1 . 3 Special Weapon 2 | . . . . . . . . . . . 2 Impact Weapon 2 | . . . . . . . . . . . 2 Slashing Weapon . | . . . . . . . . . . . . Piercing Weapon . | . . . . . . . . . . . . Special Melee Weapon . | . . . . . . . . . . . . Unidentified Prototypes 8 | . . . 1 . . 2 . 4 . . 1 Parts Lost 72 | . 2 1 . . . 1 . 25 15 . 28 Power 9 | . 1 . . . . . . 2 2 . 4 Propulsion 13 | . . 1 . . . . . 3 2 . 7 Utility 17 | . . . . . . . . 7 3 . 7 Weapon 33 | . 1 . . . . 1 . 13 8 . 10 Highest Loss Streak 13 | . 2 1 . . . 1 . 11 13 . 9 Average Slot Usage (%) 92 | . 82 74 96 100 100 99 97 91 88 100 87 Engine 5 | . 6 4 11 11 11 9 7 6 2 . 1 Core 1 | . . . . . . . . . 4 7 3 Leg 17 | . 28 18 22 22 22 18 15 14 14 15 16 Device 10 | . 4 11 11 11 11 9 8 4 12 23 13 Storage 17 | . 14 18 22 22 22 18 15 15 15 15 17 Processor 5 | . . . 7 11 11 6 . 1 9 7 9 Hackware 1 | . . . . . . . 5 4 . . 2 Protection 4 | . . . . . . 2 12 13 2 . . Energy Gun 8 | . 7 . 7 11 11 25 14 7 7 . . Energy Cannon 6 | . . . . . . 1 7 13 9 9 9 Ballistic Gun 5 | . 20 22 8 . . . . 2 7 20 4 Launcher 3 | . . . 6 11 11 9 7 2 . . . Naked Turns . | . . . . . . . . . . . . Heaviest Build 116 | 9 9 28 32 76 76 94 109 112 108 92 116 Greatest Support 75 | 20 20 26 26 26 26 30 30 40 40 35 75 Greatest Overweight (x) 5 | . . 2 1 2 2 3 3 5 3 2 4 Average Overweight (x) 1 | . . . 1 1 2 2 3 2 2 2 1 Largest Inventory Capacity 20 | 6 6 12 12 20 20 20 20 20 20 20 20 Average Capacity 18 | 6 6 10 12 13 20 20 20 20 20 20 20 Most Carried 20 | 5 5 12 12 13 13 20 20 20 20 20 20 Average Carried 16 | 4 3 8 11 12 13 17 19 18 16 19 18 Final Capacity 20 | 6 6 12 12 20 20 20 20 20 20 20 20 Final Carried 20 | 2 5 11 12 13 13 20 20 19 19 20 19 Class Distribution -------------------- 21% | Hauler-Skirmisher 19% | Hauler-Tank 19% | Mutant 14% | Scavenger-Skirmisher 9% | Hauler-Mutant 4% | Scavenger-Mutant 4% | Bothacker-Mutant 3% | Scavenger-Gunner Dominant Class ---------------- Mutant | -10/Materials Mutant | -9/Materials Mutant | -9/Mines Mutant | -9/Exiles Hauler-Mutant | -8/Mines Hauler-Skirmisher | -8/Materials Hauler-Tank | -7/Factory Hauler-Tank | -7/Storage Scavenger-Skirmisher | -7/Garrison Scavenger-Skirmisher | -7/Recycling Scavenger-Mutant | -5/Factory Resources | -11 -10 -9 -9 -9 -8 -8 -7 -7 -7 -7 -5 ----------- Run | Scr Mat Mat Min Exi Min Mat Fac Sto Gar Rec Fac Matter Collected 3034 | 200 36 64 140 30 . 125 110 620 312 83 1314 Remotely . | . . . . . . . . . . . . Salvage Created 5479 | . 87 163 279 . . 638 315 1760 832 . 1405 Parts 207 | . 2 13 18 . . 21 15 67 41 . 30 Haulers Intercepted 8 | . . 1 . . . 3 . 4 . . . Recyclers Shooed 3 | . . . . . . . . 1 . . 2 Parts Field Recycled . | . . . . . . . . . . . . Retrieved Matter . | . . . . . . . . . . . . Parts Self-Destructed . | . . . . . . . . . . . . Prevented . | . . . . . . . . . . . . Kills | -11 -10 -9 -9 -9 -8 -8 -7 -7 -7 -7 -5 ------- Run | Scr Mat Mat Min Exi Min Mat Fac Sto Gar Rec Fac Combat Hostiles Destroyed 95 | . 2 2 13 . . 9 5 25 18 . 21 Melee 1 | . . . . . . . . . . . 1 Guns 37 | . 2 2 6 . . 8 3 7 6 . 3 Cannons 26 | . . . . . . . 1 4 9 . 12 AOE 25 | . . . 7 . . . 1 10 3 . 4 Classes Destroyed 16 | . 1 3 4 . . . 2 4 1 . 1 Worker 7 | . . . . . . . . 5 . . 2 Builder 4 | . . . 1 . . . . 2 . . 1 Tunneler 1 | . . . . . . . . . . . 1 Hauler 8 | . . 1 . . . 3 . 4 . . . Recycler 7 | . . . 1 . . 1 . 2 . . 3 Mechanic 2 | . . . . . . . . 1 . . 1 Operator 2 | . . 1 . . . . 1 . . . . Watcher 3 | . . . . . . . 1 2 . . . Swarmer 19 | . . . 7 . . 2 . 4 6 . . Grunt 41 | . 2 1 2 . . 4 2 14 9 . 7 Brawler 2 | . . . . . . . . 1 . . 1 Duelist 3 | . . . . . . . . . 1 . 2 Sentry 11 | . . 1 . . . 3 1 4 . . 2 Hunter 5 | . . . . . . . . 1 1 . 3 Programmer 10 | . . . . . . . 2 1 1 . 6 Assembled 4 | . . . 4 . . . . . . . . Best Kill Streak 8 | . 1 1 4 . . 2 2 8 4 . 4 Combat Bots Only 6 | . 1 1 4 . . 2 2 6 4 . 4 Max Kills in Single Turn 4 | . 1 1 3 . . 2 1 4 3 . 2 Gunslinging . | . . . . . . . . . . . . Exploded 4 | . . . 2 . . . 1 4 3 . 2 Melee 1 | . . . . . . . . . . . 1 Uniques/NPCs Destroyed . | . . . . . . . . . . . . Combat | -11 -10 -9 -9 -9 -8 -8 -7 -7 -7 -7 -5 -------- Run | Scr Mat Mat Min Exi Min Mat Fac Sto Gar Rec Fac Damage Taken 11212 | . 261 159 419 . . 328 214 3388 1774 . 4669 Core 1933 | . 47 20 103 . . 82 32 388 255 . 1006 Absorbed by Shields . | . . . . . . . . . . . . Core Remaining (%) 67 | 100 81 . . . 69 85 . . . 3 . Volleys Fired 334 | . 18 15 28 . . 29 16 76 41 . 111 Largest 4 | . 2 2 2 . . 4 4 4 4 . 4 Hottest 295 | . 60 40 86 . . 216 229 256 190 . 295 Shots Fired 742 | . 33 30 45 . . 89 52 182 111 . 200 Gun 443 | . 33 30 39 . . 82 31 103 63 . 62 Cannon 255 | . . . . . . 3 17 61 45 . 129 Launcher 39 | . . . 6 . . 4 4 18 3 . 4 Special 5 | . . . . . . . . . . . 5 Kinetic 256 | . 23 30 19 . . . . 33 23 . 128 Thermal 400 | . 10 . 20 . . 85 47 111 70 . 57 Explosive 12 | . . . 6 . . . . 2 . . 4 Electromagnetic 69 | . . . . . . 4 5 36 18 . 6 Robot Hit Streak 13 | . 5 8 4 . . 10 6 13 8 . 9 Robot Miss Streak 8 | . 4 2 3 . . 4 6 5 3 . 8 Penetration Max 1 | . . . . . . . . 1 . . 1 Secondary Targets 2 | . . . . . . . . 2 . . . Max Gunslinging Chain 1 | . . . . . . . . 1 . . . Shots Hit Robots 461 | . 21 21 23 . . 52 29 126 61 . 128 Core Hits 263 | . 7 10 23 . . 18 16 76 27 . 86 Critical Hits 23 | . . . . . . . 1 . 3 . 19 Critical Kills 9 | . . . . . . . . . 2 . 7 Critical Parts Destroyed 13 | . . . . . . . 1 . 1 . 11 Melee Attacks 29 | . . . . . . . . . . . 29 Impact 29 | . . . . . . . . . . . 29 Slashing . | . . . . . . . . . . . . Piercing . | . . . . . . . . . . . . Sneak Attacks 2 | . . . . . . . . . . . 2 Combat Hostiles . | . . . . . . . . . . . . Follow-up Attacks . | . . . . . . . . . . . . Damage Inflicted 14697 | . 154 192 664 . . 844 684 4525 1755 . 5879 Guns 4945 | . 154 192 268 . . 824 363 1513 638 . 993 Cannons 4613 | . . . . . . . 227 953 851 . 2582 Explosions 4494 | . . . 396 . . 20 94 2059 266 . 1659 Melee 645 | . . . . . . . . . . . 645 Ramming . | . . . . . . . . . . . . Kinetic 3545 | . 107 192 80 . . . . 642 145 . 2379 Thermal 5556 | . 47 . 188 . . 824 556 1609 1164 . 1168 Explosive 2561 | . . . 396 . . . . 544 . . 1621 Electromagnetic 2390 | . . . . . . 20 128 1730 446 . 66 Impact 645 | . . . . . . . . . . . 645 Slashing . | . . . . . . . . . . . . Piercing . | . . . . . . . . . . . . Highest Corruption 20 | . . . . . . . . 1 3 3 20 Average Corruption 4 | . . . . . . . . 1 2 3 9 Corruption Purged . | . . . . . . . . . . . . Effects 108 | . . . . . . . . 3 27 5 73 Message Errors 21 | . . . . . . . . . 5 2 14 Matter Fused 15 | . . . . . . . . . 5 3 7 Heat Flow Errors 10 | . . . . . . . . . 2 . 8 Energy Discharges 10 | . . . . . . . . 2 4 . 4 Parts Rejected 1 | . . . . . . . . . . . 1 Data Loss (minor) 9 | . . . . . . . . . 4 . 5 Data Loss (major) 2 | . . . . . . . . . . . 2 Misdirections 1 | . . . . . . . . . . . 1 Targeting Errors 33 | . . . . . . . . 1 7 . 25 Weapon Failures 6 | . . . . . . . . . . . 6 Overload Shots 12 | . . . . . . . . . 10 . 2 Effects 1 | . . . . . . . . . 1 . . Short Circuit 1 | . . . . . . . . . 1 . . Overflow Damage 477 | . . . 8 . . . . 115 79 . 275 Projectiles 216 | . . . . . . . . 28 68 . 120 Explosions 115 | . . . 8 . . . . 87 11 . 9 Melee 146 | . . . . . . . . . . . 146 Knockbacks 18 | . . . . . . . . . . . 18 Impact 2 | . . . . . . . . . . . 2 Kinetic 14 | . . . . . . . . . . . 14 Secondary 2 | . . . . . . . . . . . 2 Self-Inflicted Damage 289 | . . . 62 . . 14 . 74 51 . 88 Shots 14 | . . . 2 . . 2 . 4 2 . 4 Rammed . | . . . . . . . . . . . . Targets Rammed . | . . . . . . . . . . . . Kicked . | . . . . . . . . . . . . Crushed . | . . . . . . . . . . . . Highest Temperature 325 | . 98 . 3 . . 257 193 325 314 . 212 Average Temperature 75 | . 43 . 2 . . 81 53 90 68 . 67 Received Heat Transfer 3149 | . 141 57 170 . . 117 36 1518 306 . 804 Siege Activations . | . . . . . . . . . . . . Robots Corrupted 5 | . . . . . . . . 4 . . 1 Combat Hostiles 5 | . . . . . . . . 4 . . 1 Parts Fried 21 | . . . . . . . . 13 1 . 7 Impact Corruptions 7 | . . . . . . . . . . . 7 Robots Melted 1 | . . . . . . 1 . . . . . Combat Hostiles 1 | . . . . . . 1 . . . . . Parts Melted 28 | . . . . . . 8 9 2 2 . 7 Heat Transferred 8960 | . 100 . 407 . . 1813 1036 2790 1589 . 1225 Parts Sabotaged . | . . . . . . . . . . . . Parts Stolen . | . . . . . . . . . . . . Parts Stripped . | . . . . . . . . . . . . Power Chain Reactions 7 | . . . . . . . . 7 . . . Missiles Intercepted . | . . . . . . . . . . . . Alert | -11 -10 -9 -9 -9 -8 -8 -7 -7 -7 -7 -5 ------- Run | Scr Mat Mat Min Exi Min Mat Fac Sto Gar Rec Fac Peak Influence 1164 | . 51 113 245 . . 154 162 339 796 397 1164 Initial 925 | . . 21 43 . . . . 22 220 358 925 Average 343 | . 20 66 87 . . 79 38 170 542 298 897 Maximum Alert Level 4 | . . . 1 . . . . 1 3 1 4 Low Security (%) 51 | 100 100 100 92 . 100 100 100 65 . . . Level 1 13 | . . . 7 . . . . 34 15 99 . Level 2 11 | . . . . . . . . . 68 . . Level 3 22 | . . . . . . . . . 16 . 95 Level 4 . | . . . . . . . . . . . 4 Level 5 . | . . . . . . . . . . . . High Security . | . . . . . . . . . . . . Max Security . | . . . . . . . . . . . . Squads Dispatched 22 | . . 2 . . . . 3 7 . . 10 Investigation 2 | . . . . . . . . 1 . . 1 Extermination 4 | . . . . . . . 1 1 . . 2 Reinforcement 12 | . . 2 . . . . 2 3 . . 5 Assault 2 | . . . . . . . . . . . 2 Garrison 2 | . . . . . . . . 2 . . . Intercept . | . . . . . . . . . . . . Construction Impeded 6 | . . . . . . . . 1 . . 5 Haulers Reinforced 2 | . . . . . . . . 2 . . . Stealth | -11 -10 -9 -9 -9 -8 -8 -7 -7 -7 -7 -5 --------- Run | Scr Mat Mat Min Exi Min Mat Fac Sto Gar Rec Fac Distress Signals 12 | . 2 1 . . . 2 1 3 . . 3 Communications Jammed . | . . . . . . . . . . . . Distress Signals . | . . . . . . . . . . . . Times Spotted 190 | . 5 4 19 . . 17 17 51 21 11 45 Peak Tracking Total 8 | . 4 1 4 . . 5 3 8 6 6 6 Tactical Retreats 26 | . 1 . 2 . . 1 1 11 6 . 4 Traps | -11 -10 -9 -9 -9 -8 -8 -7 -7 -7 -7 -5 ------- Run | Scr Mat Mat Min Exi Min Mat Fac Sto Gar Rec Fac Traps Triggered 10 | . . . . . . . . 3 5 . 2 Indirectly 1 | . . . . . . . . 1 . . . Trap Hack Attempts . | . . . . . . . . . . . . Triggered . | . . . . . . . . . . . . Disarmed . | . . . . . . . . . . . . Reprogrammed . | . . . . . . . . . . . . Reused . | . . . . . . . . . . . . Traps Extracted . | . . . . . . . . . . . . Installed . | . . . . . . . . . . . . Triggered 1 | . . . . . . . . 1 . . . Machines | -11 -10 -9 -9 -9 -8 -8 -7 -7 -7 -7 -5 ---------- Run | Scr Mat Mat Min Exi Min Mat Fac Sto Gar Rec Fac Machines Disabled 16 | . . . 1 . . 1 . 4 2 . 8 Max in Single Turn 1 | . . . 1 . . 1 . 1 1 . 1 Garrison Relay 1 | . . . . . . . . . 1 . . Machines Sabotaged . | . . . . . . . . . . . . Garrisons Compromised . | . . . . . . . . . . . . Overloaded Fab Kills . | . . . . . . . . . . . . Fab Network Shutdowns . | . . . . . . . . . . . . Hacking | -11 -10 -9 -9 -9 -8 -8 -7 -7 -7 -7 -5 --------- Run | Scr Mat Mat Min Exi Min Mat Fac Sto Gar Rec Fac Machines Accessed 27 | . 1 . . 2 . 4 3 5 . 5 7 Terminals 18 | . 1 . . . . 4 2 4 . 4 3 Fabricators 2 | . . . . . . . 1 . . . 1 Repair Stations . | . . . . . . . . . . . . Recycling Units 4 | . . . . . . . . . . 1 3 Scanalyzers . | . . . . . . . . . . . . Garrison Access 1 | . . . . . . . . 1 . . . Total Hacks 51 | . 2 . . 2 . 8 5 8 . 11 15 Successful 19 | . 1 . . 2 . 4 2 2 . 3 5 Failed 32 | . 1 . . . . 4 3 6 . 8 10 Catastrophic 9 | . . . . . . 3 . 2 . 2 2 Database Lockouts . | . . . . . . . . . . . . Manual 19 | . 2 . . 1 . 4 1 4 . 4 3 Terminals 36 | . 2 . . . . 8 4 5 . 10 7 Fabricators 4 | . . . . . . . 1 . . . 3 Repair Stations . | . . . . . . . . . . . . Recycling Units 6 | . . . . . . . . . . 1 5 Scanalyzers . | . . . . . . . . . . . . Garrison Access 3 | . . . . . . . . 3 . . . Terminal Hacks 10 | . . . . 2 . 2 1 1 . 2 2 Record 1 | . . . . 1 . . . . . . . Robot Analysis 2 | . . . . . . . . . . . 2 Open Door 1 | . . . . . . . . 1 . . . Branch Access Points 1 | . . . . . . 1 . . . . . Unreport Threat 3 | . . . . . . 1 1 . . 1 . Registered Prototypes 1 | . . . . . . . . . . 1 . EX-Prototype ID Bank 1 | . . . . 1 . . . . . . . Fabricator Hacks . | . . . . . . . . . . . . Repair Station Hacks . | . . . . . . . . . . . . Recycling Unit Hacks 3 | . . . . . . . . . . 1 2 Retrieve Matter 2 | . . . . . . . . . . . 2 Retrieve Components 1 | . . . . . . . . . . 1 . Scanalyzer . | . . . . . . . . . . . . Garrison Access Hacks 1 | . . . . . . . . 1 . . . Unlock Access 1 | . . . . . . . . 1 . . . Unauthorized Hacks 5 | . 1 . . . . 2 1 . . . 1 Terminals 5 | . 1 . . . . 2 1 . . . 1 Assimilate 1 | . 1 . . . . . . . . . . Botnet 3 | . . . . . . 1 1 . . . 1 Operators 1 | . . . . . . 1 . . . . . Fabricators . | . . . . . . . . . . . . Repair Stations . | . . . . . . . . . . . . Recycling Units . | . . . . . . . . . . . . Scanalyzers . | . . . . . . . . . . . . Garrison Access . | . . . . . . . . . . . . Data Cores Recovered . | . . . . . . . . . . . . Used . | . . . . . . . . . . . . Hacking Detections 23 | . 1 . . . . 4 3 4 . 4 7 Full Trace Events 3 | . . . . . . 1 . . . 1 1 Feedback Events 1 | . . . . . . . . . . . 1 Corruption 1 | . . . . . . . . . . . 1 Feedback Blocked . | . . . . . . . . . . . . Robot Schematics Acquired . | . . . . . . . . . . . . Robots Built . | . . . . . . . . . . . . Matter . | . . . . . . . . . . . . Time . | . . . . . . . . . . . . Total Robot Build Rating . | . . . . . . . . . . . . Part Schematics Acquired . | . . . . . . . . . . . . Parts Built . | . . . . . . . . . . . . Matter . | . . . . . . . . . . . . Time . | . . . . . . . . . . . . Total Part Build Rating . | . . . . . . . . . . . . Parts Repaired . | . . . . . . . . . . . . Time . | . . . . . . . . . . . . Parts Recycled . | . . . . . . . . . . . . Recycled Matter . | . . . . . . . . . . . . Retrieved Matter . | . . . . . . . . . . . . Retrieved Components 3 | . . . . . . . . . . 3 . Parts Scanalyzed . | . . . . . . . . . . . . Part Schematics Acquired . | . . . . . . . . . . . . Parts Damaged . | . . . . . . . . . . . . Bothacking | -11 -10 -9 -9 -9 -8 -8 -7 -7 -7 -7 -5 ------------ Run | Scr Mat Mat Min Exi Min Mat Fac Sto Gar Rec Fac Used RIF Installer 1 | . . . . . . . . . 1 . . Robots Hacked 2 | . . . . . . . . . . . 2 Non-combat 2 | . . . . . . . . . . . 2 Combat . | . . . . . . . . . . . . Robot Hacks Applied 2 | . . . . . . . . . . . 2 map_route 2 | . . . . . . . . . . . 2 Relay Couplers Released 4 | . . . . . . . . . 4 . . Machine Destruction 4 | . . . . . . . . . 4 . . Attached 1 | . . . . . . . . . . . 1 Robots Rewired . | . . . . . . . . . . . . Allies Hacked . | . . . . . . . . . . . . Hacks Repelled . | . . . . . . . . . . . . Allies | -11 -10 -9 -9 -9 -8 -8 -7 -7 -7 -7 -5 -------- Run | Scr Mat Mat Min Exi Min Mat Fac Sto Gar Rec Fac Total Allies . | . . . . . . . . . . . . Largest Group . | . . . . . . . . . . . . Highest-Rated Group . | . . . . . . . . . . . . Highest-Rated Ally . | . . . . . . . . . . . . Total Orders . | . . . . . . . . . . . . Ally Attacks . | . . . . . . . . . . . . Total Damage . | . . . . . . . . . . . . Kills . | . . . . . . . . . . . . Allies Corrupted . | . . . . . . . . . . . . Allies Melted . | . . . . . . . . . . . . Intel | -11 -10 -9 -9 -9 -8 -8 -7 -7 -7 -7 -5 ------- Run | Scr Mat Mat Min Exi Min Mat Fac Sto Gar Rec Fac Robot Analysis Total 2 | . . . . . . . . . . . 2 Derelict Logs Recovered 1 | . . . 1 . . . . . . . . Drone Launches . | . . . . . . . . . . . . Drone Recoveries . | . . . . . . . . . . . . Exploration | -11 -10 -9 -9 -9 -8 -8 -7 -7 -7 -7 -5 ------------- Run | Scr Mat Mat Min Exi Min Mat Fac Sto Gar Rec Fac Turns Passed 8532 | 2 150 254 928 412 93 856 1236 1161 1326 401 1713 Spaces Moved 3837 | 1 82 135 533 261 41 337 540 389 589 211 718 Core . | . . . . . . . . . . . . Treads . | . . . . . . . . . . . . Legs 3837 | 1 82 135 533 261 41 337 540 389 589 211 718 Wheels . | . . . . . . . . . . . . Hover . | . . . . . . . . . . . . Flight . | . . . . . . . . . . . . Fastest Speed 120 | 120 120 120 150 150 180 180 210 180 160 185 153 Average Speed 180 | 120 120 145 150 155 180 206 210 206 187 185 168 Slowest Speed 270 | 120 120 180 150 180 180 210 210 270 220 185 250 Overloaded Moves . | . . . . . . . . . . . . Propulsion Burnouts . | . . . . . . . . . . . . Robots Hopped . | . . . . . . . . . . . . Cave-ins Triggered . | . . . . . . . . . . . . Exploration Rate (%) 38 | 2 19 19 87 61 20 34 17 61 67 54 20 Regions Visited 11 Branch Regions 5 Pre-discovered Areas 2 | . . . 1 1 . . . . . . . Known Exits Taken 1 | . . . . . . . . 1 . . . Unknown Exits Taken 9 | 1 1 1 1 1 1 1 1 . . 1 . Scrap Searched 1 | . . . 1 . . . . . . . . Spaces Dug 11 | . . . . . . . . . . . 11 Terrain Destroyed 263 | . . . 39 . . . . 100 2 . 122 Melee 4 | . . . . . . . . . . . 4 Projectile 77 | . . . . . . . . 15 2 . 60 AOE 182 | . . . 39 . . . . 85 . . 58 Terrain Rammed . | . . . . . . . . . . . . Walls Destroyed . | . . . . . . . . . . . . Machines Disabled . | . . . . . . . . . . . . Actions | -11 -10 -9 -9 -9 -8 -8 -7 -7 -7 -7 -5 --------- Run | Scr Mat Mat Min Exi Min Mat Fac Sto Gar Rec Fac Total 4818 | 4 104 168 622 267 61 441 610 608 731 225 977 Wait 277 | . . 7 46 . 21 28 27 71 38 5 34 Move 3826 | . 81 134 532 260 40 336 539 388 588 210 718 Hop . | . . . . . . . . . . . . Pick Up 89 | . 3 6 5 1 . 19 8 21 9 1 16 Fast Attach 53 | . 2 2 1 . . 3 2 9 10 2 22 Attach 41 | . . 1 1 . . 3 . 14 9 . 13 Detach 6 | . . . 1 . . 1 . . 2 1 1 Swap 61 | . . 2 3 3 . 6 6 17 4 2 18 Drop 76 | 4 . 1 5 3 . 16 11 12 5 4 15 Fire 334 | . 18 15 28 . . 29 16 76 41 . 111 Melee 29 | . . . . . . . . . . . 29 Ram . | . . . . . . . . . . . . Kick . | . . . . . . . . . . . . Crush . | . . . . . . . . . . . . Escape Stasis 25 | . . . . . . . . . 25 . . Rewire 1 | . . . . . . . 1 . . . . Trap . | . . . . . . . . . . . . Miscellaneous . | . . . . . . . . . . . . Route ------- -11/Scrapyard -10/Materials -9/Materials -9/Mines (discovered 2 exits: *Mat / *Exi) -9/Exiles -8/Mines -8/Materials -7/Factory (discovered 2 exits: *Sto / Low) -7/Storage (discovered 2 exits: [*Fac] / Gar) -7/Garrison (discovered 3 exits: *Rec x3) -7/Recycling -5/Factory History --------- Turn | Location | Event 3 | -11/Scrapyard | Discovered new exit (range 0) 3 | -11/Scrapyard | Entered Materials 135 | -10/Materials | Discovered new exit (range 16) 153 | -10/Materials | Entered another Materials area 153 | -9/Materials | Evolved 2 slots: Utility x2 328 | -9/Materials | Build established: Mutant 394 | -9/Materials | Discovered new exit (range 8) 407 | -9/Materials | Entered Mines 419 | -9/Mines | Discovered new exit (range 8) 452 | -9/Mines | Learned location of Storage (-7) 491 | -9/Mines | Assembled infested the area 1066 | -9/Mines | YI-UF0 nonchalantly dropped a Grenade Launcher on the ground 1329 | -9/Mines | Deemed a non-threat by the Exiles lab entrance 1329 | -9/Mines | Discovered new exit (range 5) 1335 | -9/Mines | Entered Exiles 1373 | -9/Exiles | Met 8R-AWN 1398 | -9/Exiles | Met EX-HEX 1437 | -9/Exiles | Met EX-BIN 1457 | -9/Exiles | Aligned with FarCom system 1458 | -9/Exiles | Given EX-Vault access code 1493 | -9/Exiles | Opened EX-Vault 1508 | -9/Exiles | Found Firepult 1540 | -9/Exiles | Warned to stay clear of 0b10 Research branches 1583 | -9/Exiles | Met EX-DEC 1592 | -9/Exiles | Learned location of Zion (-7) 1727 | -9/Exiles | Discovered new exit (range 14) 1747 | -9/Exiles | Left Exiles lab with Firepult 1747 | -9/Exiles | Entered Mines 1830 | -8/Mines | Discovered new exit (range 7) 1840 | -8/Mines | Entered Materials 1840 | -8/Materials | Evolved 2 slots: Weapon x2 2157 | -8/Materials | Build established: Hauler-Skirmisher 2627 | -8/Materials | Discovered new exit (range 13) 2696 | -8/Materials | Entered Factory 2696 | -7/Factory | Evolved 2 slots: Utility x2 2697 | -7/Factory | Identified exit to Lower Caves 3395 | -7/Factory | Build established: Hauler-Tank 3799 | -7/Factory | Discovered new exit (range 6) 3932 | -7/Factory | Entered Storage 4004 | -7/Storage | Found Prototype Launcher 4004 | -7/Storage | Identified Scatter Rocket Array 4007 | -7/Storage | Found Scatter Rocket Array 4015 | -7/Storage | Found Scatter Rocket Array 4032 | -7/Storage | Found Scatter Rocket Array 4148 | -7/Storage | Lost 3 parts (3w) 4227 | -7/Storage | Core integrity fell below 50% 4254 | -7/Storage | Lost 11 parts (1p2n3u5w) 4792 | -7/Storage | Lost 8 parts (1p1n3u3w) 4982 | -7/Storage | Garrison activated, responded to threat 5035 | -7/Storage | Discovered new exit (range 7) 5067 | -7/Storage | Identified exit to Garrison 5093 | -7/Storage | Entered Garrison 5143 | -7/Garrison | Triggered checkpoint 5268 | -7/Garrison | Triggered checkpoint 5433 | -7/Garrison | Build established: Hauler-Skirmisher 5500 | -7/Garrison | Triggered checkpoint 5530 | -7/Garrison | Triggered checkpoint 5545 | -7/Garrison | Core integrity fell below 20% 5579 | -7/Garrison | Lost 13 parts (2p2n3u6w) 5687 | -7/Garrison | Discovered new exit (range 10) 5911 | -7/Garrison | Discovered new exit (range 12) 5964 | -7/Garrison | Build established: Scavenger-Skirmisher 6014 | -7/Garrison | Triggered checkpoint 6122 | -7/Garrison | Discovered new exit (range 10) 6153 | -7/Garrison | Installed Relay Interface Framework 6202 | -7/Garrison | Triggered checkpoint 6260 | -7/Garrison | Garrison Relay disabled 6419 | -7/Garrison | Entered Recycling 6505 | -7/Recycling | Spotter reported a threat 6507 | -7/Recycling | Spotter reported a threat 6509 | -7/Recycling | Spotter reported a threat 6510 | -7/Recycling | Spotter reported a threat 6515 | -7/Recycling | Spotter reported a threat 6531 | -7/Recycling | Spotter reported a threat 6558 | -7/Recycling | Spotter reported a threat 6560 | -7/Recycling | Spotter reported a threat 6563 | -7/Recycling | Spotter reported a threat 6568 | -7/Recycling | Spotter reported a threat 6584 | -7/Recycling | Spotter reported a threat 6592 | -7/Recycling | Spotter reported a threat 6613 | -7/Recycling | Spotter reported a threat 6626 | -7/Recycling | Spotter reported a threat 6628 | -7/Recycling | Spotter reported a threat 6795 | -7/Recycling | Discovered new exit (range 11) 6801 | -7/Recycling | Spotter reported a threat 6816 | -7/Recycling | Spotter reported a threat 6820 | -7/Recycling | Entered Factory 6820 | -5/Factory | Evolved 4 slots: Propulsion x2, Utility x2 7420 | -5/Factory | First assault squad dispatched 7766 | -5/Factory | Lost 9 parts (2p3n2u2w) 7800 | -5/Factory | Core integrity fell below 50% 7979 | -5/Factory | System corruption reached 10% 8135 | -5/Factory | Lost 3 parts (1p1n1u) 8450 | -5/Factory | Lost 4 parts (1n3w) 8452 | -5/Factory | Core integrity fell below 20% 8533 | -5/Factory | Destroyed by G-50 Soldier with Heavy Laser Last Messages --------------- 08489_ Acquired 51 matter. 08491_ Acquired 30 matter. 08492_ K-01 Serf collects debris. 08505_ ,0JN|G GQXF65=3QV72&IIQ9 08507_ K-01 Serf collects debris. 08508_ Imp. Titanium Leg destroyed. 08509_ P-70 Sage resets R-10 Processor, system corruption cleaned. 08510_ K-01 Serf collects debris. 08514_ U-05 Engineer lays Concrete. 08520_ System corrupted: Heat flow error (+136). 08521_ Enh. Gauss Cannon destroyed. 08526_ Slug penetrates P-70 Sage. 08527_ Imp. Kinecellerator destroyed. 08527_ Gauss Rifle destroyed. 08532_ P-70 Sage destroyed. 08532_ T-07 Excavator destroyed. 08532_ K-01 Serf collects debris. 08532_ ALERT: Construction progress impeded, dispatching reinforcements to local area. 08532_ U-05 Engineer lays Concrete. Map ----- +----------------------------------------------------+ | " # """ ?????????????????????????????????????? | | " + ???????????????????????????????????? | | # """ ! ?????????????????????????????????????? | | " # "R ?????????????????????????????????????? | | " # """ ?????????????????????????????????????? | | " # ???????????????????????????????????? | | ############??????????????????????????????????? | | " #??????????????????????????????????????? | | " #??????????????????????????????????????? | | " #####??????????????????????????????????? | | # ???????????#???????????????????????? | | # ???????????!???????????????????????? | | ##### # "???????????? ???????????????????????? | | # # ""??????????? ???????????????????????? | | # # ""??????????? ???????????????????????? | | + # """? ???????#+#??????????????????????? | | # + ???????# ??????????????????????? | | ! # # """? ???????# #??????????????????????? | | # # ""??????????# #??????????????????????? | | # # ""??????????# #??????????????????????? | | # # "???????????# #??????????????????????? | | # # ??????????# #??????????????????????? | | # #####?????????# #??????????????????????? | | # #?????????????# ###########????????????? | | # #?????????????# # #????????????? | | # #????????????##@# """ #????????????? | | ##### #???????????? ! """ #????????????? | | ##### ############ ! """ #????????????? | | ^ gg #????????????? | | gb|%= ##???????????? | | ^ = ##???????????? | | ^ # ???????? | | ^k p ####+### ???? | | ##############+####u## # #### ##?? ???? | | ????????# # ## #???? ???? | | ????????# # ## #??????####???? | | ????????# # """## #?????????????? | | ????????# ""## #?????????????? | | ????????# """" !![ * ""## #?????????????? | | ????????# """" !![ % F""## #?????????????? | | ????????# """" ![R# | """## #?????????????? | | ????????# """" w# ## #?????????????? | | ???????## """" # uu R ## ###???????????? | | ???????# """" ! # ## ####??????????? | | ???????## + # # # #???????? | | ????????# # # #????????? | | ????????############## # !#####????????? | | ?????????????????? # ##### ???????? | | ?????????????? # #?????### "???? | | ?????????????""" """ # ##### #???? | +----------------------------------------------------+ Best States ------------- Heat Dissipation 87 Energy Generation 18 Energy Capacity 670 Matter Stores 469 Matter Capacity 550 Sight Range 22 Terrain Scan Range 14 Terrain Scan Density 110 Armor Coverage 450 Evasion (%) 40 Target Analysis 5 Core Analysis 8 Kinecelleration 40 Offensive Hacking 10 Relay Coupler Types 33 Relay Coupler Value 1 Item Schematics ----------------- None Robot Schematics ------------------ None Fabricated ------------ Nothing Alien Tech Used ----------------- None Achievements -------------- None Challenges ------------ None Game ------ Seed PhasingThermalShifter Manual? 0 Play Time 00:59:39 Cumulative 282.3 hours Start 2020.09.11 @ 20:00:57 End 2020.09.11 @ 21:13:58 Sessions 1 Manual Loads 0 Difficulty Rogue Special Mode None Game No. 429 Rogue 428 Adventurer 0 Explorer 1 Win Type - Total 1 Types 1/0/0/0/0/0/0/0/0 Lore% 66 Gallery% 80 Achievement% 55 Wizard Run 0 Options --------- ASCII 0 Keyboard 1 Movement Vi Keybinds 0 Fullscreen 2 Font 14/Cog Map View 72x54 Tactical HUD 1 Map Filters NONE Filters LOW_CONTRAST(13,24,33) Steam 0 RUN: 8a36814c-39ca-446e-82e4-5327c55279c5